bitfinex-derivatives/quotes_SOLF0:USTF0_20251023
["timestamp","ask_amount","ask_price","bid_price","bid_amount"]
[1761250172027,2.84,190.56,190.54,4.7222]
[1761250172423,6.87786793,190.56,190.54,4.7222]
[1761250172622,2.84,190.56,190.52,7.3526]
[1761250173435,6.87951781,190.56,190.52,7.3526]
[1761250173636,2.84,190.56,190.52,7.3526]
[1761250173828,2.84,190.54,190.52,4.7226]
[1761250174139,6.87957491,190.54,190.52,4.7226]
[1761250174323,2.84,190.54,190.52,4.7226]
[1761250174935,6.87900527,190.54,190.52,4.7226]
[1761250175130,2.84,190.54,190.52,4.7226]
[1761250175333,6.87892037,190.56,190.52,7.3526]
[1761250175532,6.87892037,190.55,190.52,4.7226]
[1761250175745,2.84,190.55,190.52,4.7226]
[1761250176040,2.84,190.56,190.52,7.3526]
[1761250176242,6.89090218,190.55,190.52,7.3526]
[1761250176440,2.84,190.55,190.52,7.3526]
[1761250176745,2.84,190.55,190.52,4.7226]
[1761250177238,6.89072542,190.55,190.52,4.7226]
[1761250177542,2.84,190.55,190.52,4.7226]
[1761250178141,6.89059352,190.55,190.52,4.7226]
[1761250178340,2.84,190.55,190.52,4.7226]
[1761250179034,6.8904658,190.55,190.52,4.7226]
[1761250179346,2.84,190.55,190.52,4.7226]
[1761250180144,6.89068129,190.55,190.52,7.3526]
[1761250180339,2.84,190.55,190.5,4.7231]
[1761250180539,2.84,190.53,190.5,4.7231]
[1761250180845,6.89022161,190.53,190.5,4.7231]
[1761250181141,2.84,190.53,190.5,4.7231]
[1761250181343,2.84,190.53,190.5,7.3531]
[1761250182047,2.84,190.53,190.47,2.63]
[1761250182745,2.84,190.53,190.49,2.63]
[1761250183335,6.88966915,190.53,190.49,2.63]
[1761250183538,2.84,190.53,190.49,2.63]
[1761250183945,4.04690707,190.54,190.51,2.63]
[1761250184138,4.04690707,190.55,190.51,2.63]
[1761250184345,2.84,190.53,190.5,7.3531]
[1761250186142,2.84,190.53,190.48,4.7236]
[1761250186340,2.84,190.53,190.46,2.75235794]
[1761250186341,2.84,190.52,190.46,2.63]
[1761250186545,2.84,190.5,190.44,44.08]
[1761250186747,6.88317058,190.5,190.44,48.8046]
[1761250187247,2.84,190.49,190.44,48.8046]
[1761250187446,2.84,190.49,190.44,4.7246]
[1761250187656,2.84,190.48,190.44,4.7246]
[1761250188055,2.84,190.49,190.44,4.7246]
[1761250188240,2.84,190.48,190.44,4.7246]
[1761250188753,2.84,190.48,190.43,2.63]
[1761250189053,2.84,190.48,190.42,4.7251]
[1761250190343,6.87727114,190.48,190.42,4.7251]
[1761250191050,6.87727114,190.48,190.43,4.7248]
[1761250191252,2.84,190.48,190.43,7.3548]
[1761250193962,2.84,190.48,190.44,2.63]
[1761250194664,2.84,190.48,190.41,2.63]
[1761250194860,2.84,190.51,190.41,2.63]
[1761250195255,4.03218974,190.52,190.44,2.63]
[1761250195455,6.87218974,190.53,190.44,2.63]
[1761250195658,2.84,190.53,190.44,2.63]
[1761250196762,6.8738808,190.53,190.44,2.63]
[1761250196964,2.84,190.53,190.48,4.7236]
[1761250197361,2.84,190.53,190.48,7.3536]
[1761250200567,2.84,190.52,190.48,7.3536]
[1761250201461,2.84,190.55,190.49,7.5233]
[1761250201658,2.84,190.54,190.49,7.5233]
[1761250201862,2.84,190.53,190.49,7.5233]
[1761250202057,4.03538032,190.56,190.51,4.7228]
[1761250202264,4.03538032,190.57,190.52,2.8]
[1761250202565,2.84,190.6,190.52,2.8]
[1761250203160,2.84,190.6,190.5,2.8]
[1761250203660,2.84,190.6,190.53,7.5225]
[1761250203873,2.84,190.6,190.53,4.7225]
[1761250204168,2.84,190.59,190.53,7.5225]
[1761250204765,6.8771368,190.59,190.53,7.5225]
[1761250204972,6.8771368,190.58,190.53,7.5225]
[1761250205170,2.84,190.58,190.53,7.5225]
[1761250205966,2.84,190.57,190.53,7.5225]
[1761250208277,2.84,190.57,190.54,2.8]
[1761250209376,4.03683379,190.59,190.55,2.8]
[1761250209377,6.87683379,190.59,190.55,2.8]
[1761250209575,2.84,190.59,190.55,2.8]
[1761250209881,2.84,190.59,190.52,2.75235794]
[1761250210074,2.84,190.54,190.46,2.8]
[1761250210271,2.84,190.51,190.39,2.8]
[1761250210474,2.84,190.51,190.43,4.7248]
[1761250210777,2.84,190.51,190.41,2.8]
[1761250210968,2.84,190.51,190.44,4.7246]
[1761250211875,2.84,190.51,190.44,7.5246]
[1761250212075,6.88091709,190.51,190.44,7.5246]
[1761250212379,2.84,190.51,190.44,7.5246]
[1761250212674,6.87851916,190.51,190.44,7.5246]
[1761250213070,2.84,190.55,190.47,2.8]
[1761250213977,6.87897947,190.55,190.5,4.723]
[1761250214279,4.03897947,190.54,190.51,2.8]
[1761250214779,2.84,190.55,190.51,2.8]
[1761250216071,4.03897947,190.57,190.51,2.8]
[1761250216266,4.03897947,190.56,190.51,2.8]
[1761250216471,4.03897947,190.57,190.51,7.5228]
[1761250216674,4.03897947,190.56,190.52,2.8]
[1761250216871,4.03897947,190.56,190.41,9.4506]
[1761250216872,2.75235794,190.55,190.4,2.8]
[1761250217072,2.84,190.5,190.37,2.8]
[1761250217273,2.84,190.48,190.37,2.8]
[1761250217572,6.87897947,190.47,190.36,2.75235794]
[1761250217774,4.03897947,190.46,190.38,2.8]
[1761250217974,2.84,190.47,190.38,2.8]
[1761250218477,6.87897947,190.47,190.38,2.8]
[1761250218672,4.03897947,190.46,190.38,2.8]
[1761250218867,2.84,190.45,190.38,2.8]
[1761250219071,2.84,190.44,190.38,2.8]
[1761250219274,2.84,190.47,190.38,2.8]
[1761250219476,4.7244,190.46,190.39,4.7258]
[1761250219677,7.5644,190.46,190.38,2.8]
[1761250219875,5.59235794,190.44,190.38,2.8]
[1761250220674,2.84,190.44,190.38,2.8]
[1761250220982,7.5647,190.44,190.38,2.8]
[1761250221174,6.87128893,190.43,190.34,2.8]
[1761250221478,6.87128893,190.42,190.34,2.8]
[1761250221684,2.84,190.42,190.34,2.8]
[1761250222073,2.84,190.42,190.34,7.5269]
[1761250222675,2.84,190.42,190.34,9.29241466]
[1761250223272,15.74,190.51,190.26,62.0]
[1761250223273,4.7245,190.45,190.39,2.8]
[1761250223479,4.7245,190.45,190.4,4.56551466]
[1761250223679,7.5645,190.45,190.4,4.56551466]
[1761250224178,2.84,190.44,190.4,4.56551466]
[1761250224385,2.84,190.44,190.4,2.8]
[1761250225180,2.84,190.44,190.38,6.49151466]
[1761250229586,2.84,190.44,190.38,4.726]
[1761250229886,2.84,190.44,190.38,6.49151466]
[1761250230884,2.81,190.43,190.36,7.5266]
[1761250231085,2.81,190.43,190.37,2.68]
[1761250231281,2.81,190.43,190.38,1.76551466]
[1761250231480,2.81,190.43,190.38,4.52551466]
[1761250232185,2.81,190.43,190.38,1.76551466]
[1761250232489,2.81,190.43,190.39,2.76]
[1761250233787,2.76,190.39,190.3,4.52551466]
[1761250233986,2.76,190.37,190.3,2.76]
[1761250234184,4.7271,190.35,190.3,2.76]
[1761250234382,2.76,190.34,190.3,2.76]
[1761250234583,2.76,190.33,190.26,2.76]
[1761250236286,2.76,190.33,190.27,1.76551466]
[1761250236479,2.76,190.33,190.27,4.52551466]
[1761250236679,4.14519737,190.36,190.24,0.91458607]
[1761250236888,2.76,190.3,190.24,0.91458607]
[1761250237288,2.76,190.34,190.27,1.76551466]
[1761250237486,2.76,190.34,190.27,4.52551466]
[1761250238193,2.76,190.34,190.28,7.4886]
[1761250239893,2.76,190.34,190.28,2.76]
[1761250240593,2.76,190.34,190.25,9.25471466]
[1761250240795,2.76,190.34,190.26,2.76]
[1761250241596,2.76,190.34,190.27,9.25441466]
[1761250241997,2.76,190.34,190.27,2.76]
[1761250242389,2.76,190.34,190.27,4.52551466]
[1761250243593,2.76,190.34,190.27,1.76551466]
[1761250243896,2.76,190.34,190.27,2.76]
[1761250244093,2.76,190.34,190.27,7.4889]
[1761250244598,4.13133919,190.36,190.29,2.76]
[1761250244800,6.89133919,190.36,190.29,2.76]
[1761250245996,6.89133919,190.36,190.29,7.4882]
[1761250246201,6.89133919,190.36,190.3,4.52551466]
[1761250246402,2.76,190.36,190.3,4.52551466]
[1761250246597,2.76,190.36,190.31,2.76]
[1761250248906,2.76,190.36,190.32,2.76]
[1761250254319,2.76,190.36,190.32,7.4875]
[1761250254620,2.76,190.35,190.32,4.7275]
[1761250255714,4.13212044,190.36,190.33,2.76]
[1761250255919,6.89212044,190.37,190.33,2.76]
[1761250256219,4.13212044,190.36,190.33,2.76]
[1761250256414,2.76,190.34,190.3,4.7282]
[1761250256917,2.76,190.34,190.28,1.76551466]
[1761250257109,2.76,190.34,190.28,4.52551466]
[1761250257621,2.76,190.34,190.29,2.76]
[1761250258008,4.13212044,190.35,190.32,2.76]
[1761250258209,4.13212044,190.34,190.32,2.76]
[1761250258517,2.76,190.36,190.32,2.76]
[1761250258716,2.76,190.34,190.31,4.7278]
[1761250258917,6.89212044,190.34,190.31,4.7278]
[1761250259119,4.13212044,190.33,190.31,4.7278]
[1761250259622,4.13212044,190.33,190.26,2.76]
[1761250259922,6.83212044,190.32,190.26,2.83]
[1761250260120,4.15601023,190.31,190.28,7.5586]
[1761250260316,6.8553713,190.3,190.26,1.76551466]
[1761250260513,2.7,190.29,190.26,1.76551466]
[1761250261022,2.7,190.29,190.25,0.91438181]
[1761250261227,2.7,190.29,190.25,3.74438181]
[1761250261624,7.4275,190.33,190.27,4.7288]
[1761250261821,4.15783179,190.32,190.25,0.91438181]
[1761250262126,2.7,190.3,190.26,1.76551466]
[1761250262321,4.120923,190.29,190.26,6.49451466]
[1761250262716,4.120923,190.29,190.26,4.59551466]
[1761250263116,2.7,190.3,190.26,4.59551466]
[1761250263729,2.7,190.3,190.26,2.83]
[1761250263925,2.7,190.3,190.27,1.76551466]
[1761250264221,2.7,190.3,190.27,6.49431466]
[1761250264620,4.15262701,190.29,190.27,6.49431466]
[1761250264819,2.7,190.3,190.27,6.49431466]
[1761250265016,4.15258471,190.29,190.27,6.49431466]
[1761250265322,2.7,190.3,190.27,6.49431466]
[1761250265628,4.11739784,190.29,190.27,6.49431466]
[1761250265924,4.83140572,190.37,190.28,2.83]
[1761250266126,6.86692111,190.36,190.32,2.83]
[1761250266431,6.86692111,190.35,190.31,1.76551466]
[1761250266727,4.16692111,190.34,190.31,1.76551466]
[1761250267029,4.16692111,190.33,190.31,9.32341466]
[1761250267326,6.86692111,190.34,190.31,6.49341466]
[1761250267526,4.16692111,190.33,190.31,6.49341466]
[1761250268130,2.7,190.34,190.31,6.49341466]
[1761250268525,4.16692111,190.35,190.3,1.76551466]
[1761250268733,2.7,190.33,190.28,1.76551466]
[1761250269031,2.7,190.31,190.28,1.76551466]
[1761250269224,2.7,190.31,190.26,1.76551466]
[1761250269429,2.7,190.31,190.26,4.59551466]
[1761250269932,2.7,190.31,190.26,6.49451466]
[1761250270119,2.7,190.3,190.26,1.76551466]
[1761250270323,2.7,190.29,190.26,1.76551466]
[1761250270522,2.7,190.29,190.25,0.91438181]
[1761250271330,6.86692111,190.29,190.25,0.91438181]
[1761250271528,4.16692111,190.28,190.25,8.47368181]
[1761250271733,2.7,190.29,190.25,8.47368181]
[1761250272229,2.7,190.29,190.25,7.5593]
[1761250272532,6.85579246,190.29,190.25,7.5593]
[1761250272832,4.15579246,190.28,190.25,7.5593]
[1761250273226,2.7,190.29,190.25,7.5593]
[1761250273634,6.85579246,190.29,190.26,1.76551466]
[1761250273833,4.15579246,190.28,190.26,1.76551466]
[1761250274031,2.7,190.29,190.26,1.76551466]
[1761250274537,6.85579246,190.29,190.26,1.76551466]
[1761250274833,2.7,190.29,190.26,1.76551466]
[1761250275428,6.85878253,190.29,190.26,1.76551466]
[1761250275628,4.15878253,190.28,190.26,1.76551466]
[1761250276025,4.15878253,190.31,190.27,2.83]
[1761250276330,4.1640659,190.32,190.29,2.83]
[1761250276635,4.1640659,190.31,190.28,4.59551466]
[1761250276835,4.1640659,190.3,190.28,4.59551466]
[1761250277026,4.1640659,190.31,190.28,4.59551466]
[1761250277228,4.15650616,190.3,190.28,4.59551466]
[1761250277426,4.15650616,190.31,190.28,1.76551466]
[1761250277741,2.7,190.34,190.3,1.76551466]
[1761250277929,6.85714246,190.33,190.3,1.76551466]
[1761250278130,4.15714246,190.32,190.3,1.76551466]
[1761250278331,4.15714246,190.31,190.3,1.76551466]
[1761250278938,4.15714246,190.32,190.3,4.59551466]
[1761250279138,2.7,190.36,190.31,4.59551466]
[1761250279438,6.86149138,190.35,190.31,4.59551466]
[1761250279638,4.16149138,190.34,190.31,4.59551466]
[1761250279938,4.16149138,190.33,190.31,9.32331466]
[1761250280137,4.16149138,190.32,190.31,9.32331466]
[1761250282244,8.81291113,190.37,190.31,9.32331466]
[1761250282446,6.86149138,190.36,190.34,1.76551466]
[1761250282643,4.16149138,190.35,190.34,4.59551466]
[1761250282848,4.83140572,190.44,190.35,2.83]
[1761250283144,4.83140572,190.44,190.37,7.48464619]
[1761250283145,2.7,190.43,190.37,7.48464619]
[1761250283346,7.35265213,190.43,190.37,2.75834619]
[1761250283647,2.7,190.43,190.37,2.75834619]
[1761250284048,2.7,190.43,190.37,5.58834619]
[1761250284747,2.7,190.43,190.37,2.83]
[1761250285047,2.7,190.43,190.36,4.7267]
[1761250285235,5.45834619,190.43,190.28,2.83]
[1761250285435,2.7,190.36,190.26,2.75834619]
[1761250285641,2.7,190.36,190.24,2.83]
[1761250285848,2.7,190.36,190.25,2.83]
[1761250286047,2.7,190.34,190.26,4.7291]
[1761250286242,2.73,190.33,190.26,4.7291]
[1761250286446,2.73,190.33,190.25,2.83]
[1761250287851,2.73,190.33,190.28,4.7285]
[1761250288654,2.73,190.33,190.26,4.7291]
[1761250288855,2.67,190.32,190.26,4.7291]
[1761250291752,2.67,190.32,190.24,2.75834619]
[1761250291753,2.67,190.32,190.27,7.5187]
[1761250292648,2.67,190.32,190.22,9.46304044]
[1761250292849,2.67,190.32,190.22,6.70469425]
[1761250293049,2.67,190.32,190.22,3.91469425]
[1761250293243,2.67,190.27,190.22,3.0]
[1761250293646,2.75834619,190.27,190.22,3.0]
[1761250293860,2.67,190.25,190.22,3.0]
[1761250294346,2.67,190.24,190.22,3.0]
[1761250294860,2.67,190.27,190.22,3.0]
[1761250295156,2.67,190.26,190.22,3.0]
[1761250296054,2.67,190.26,190.22,5.79]
[1761250296358,2.67,190.26,190.22,3.0]
[1761250297150,4.73356149,190.28,190.22,3.0]
[1761250297350,3.89489072,190.29,190.22,3.0]
[1761250297556,6.56489072,190.3,190.22,3.0]
[1761250298055,3.89489072,190.3,190.22,3.0]
[1761250298258,2.67,190.29,190.22,3.0]
[1761250298459,2.67,190.29,190.23,4.7297]
[1761250299152,6.56489072,190.29,190.23,4.7297]
[1761250301362,2.67,190.29,190.23,4.7297]
[1761250302564,2.67,190.28,190.23,4.7297]
[1761250304163,2.67,190.28,190.22,3.0]
[1761250304164,2.67,190.28,190.24,7.5194]
[1761250305869,2.67,190.28,190.24,11.7094]
[1761250306361,8.6212306,190.31,190.25,2.79]
[1761250306763,3.89210351,190.31,190.25,2.79]
[1761250307451,3.89210351,190.31,190.26,4.729]
[1761250307452,6.56210351,190.31,190.26,4.729]
[1761250307659,6.56210351,190.31,190.26,7.519]
[1761250307960,2.67,190.31,190.26,7.519]
[1761250308762,2.67,190.31,190.26,4.729]
[1761250309064,6.56131319,190.31,190.27,2.79]
[1761250309964,6.56131319,190.31,190.27,7.5188]
[1761250310368,2.67,190.31,190.27,2.79]
[1761250311262,2.67,190.31,190.24,4.19]
[1761250311263,2.67,190.31,190.24,6.98]
[1761250311767,2.67,190.31,190.24,4.19]
[1761250312066,2.67,190.31,190.26,4.729]
[1761250312463,2.67,190.31,190.24,9.28]
[1761250312670,2.67,190.3,190.24,9.28]
[1761250312966,2.67,190.28,190.24,9.28]
[1761250314669,2.67,190.27,190.24,9.28]
[1761250314864,2.67,190.26,190.24,9.28]
[1761250315163,4.7293,190.26,190.24,9.28]
[1761250315369,2.67,190.25,190.24,9.28]
[1761250316563,7.61732904,190.25,190.24,9.28]
[1761250317159,3.73,190.25,190.24,9.28]
[1761250319069,47.81,190.25,190.24,9.28]
[1761250319467,2.67,190.25,190.24,9.28]
[1761250319973,2.77,190.23,190.12,7.4326]
[1761250320158,2.77,190.2,190.12,2.7]
[1761250320361,2.77,190.18,190.09,2.7]
[1761250320669,2.77,190.18,190.12,2.7]
[1761250321067,2.77,190.18,190.11,4.7327]
[1761250321258,2.77,190.18,190.11,7.4327]
[1761250321569,2.77,190.18,190.11,2.7]
[1761250322664,2.77,190.21,190.13,2.7]
[1761250322870,2.77,190.21,190.13,7.4324]
[1761250323266,2.77,190.21,190.14,4.732]
[1761250323474,2.77,190.21,190.14,7.432]
[1761250323973,2.77,190.21,190.15,4.62]
[1761250324364,2.77,190.2,190.15,4.62]
[1761250324762,2.77,190.2,190.15,7.32]
[1761250326470,4.7306,190.21,190.16,2.7]
[1761250326671,7.5006,190.21,190.16,2.7]
[1761250327170,2.77,190.21,190.17,2.7]
[1761250327561,44.08,190.24,190.17,2.7]
[1761250327562,44.08,190.24,190.17,7.4312]
[1761250327763,5.52834619,190.25,190.17,2.7]
[1761250327972,2.77,190.29,190.19,2.7]
[1761250328276,2.77,190.28,190.21,2.7]
[1761250328473,6.65707936,190.28,190.21,2.7]
[1761250328777,6.65707936,190.28,190.21,7.4302]
[1761250328969,6.65707936,190.28,190.21,2.7]
[1761250329575,6.65707936,190.28,190.22,4.73]
[1761250329770,11.26113651,190.28,190.22,4.73]
[1761250329969,11.26113651,190.28,190.22,7.43]
[1761250329970,6.65707936,190.27,190.22,7.43]
[1761250330871,6.65707936,190.27,190.23,2.7]
[1761250331573,3.88707936,190.26,190.23,7.4298]
[1761250331871,3.89756388,190.29,190.24,2.7]
[1761250332074,8.5137082,190.32,190.24,2.7]
[1761250332271,2.77,190.3,190.15,7.32]
[1761250332570,2.77,190.17,190.11,5.24]
[1761250332773,2.75834619,190.18,189.99,0.0001]
[1761250332774,2.77,190.02,189.99,0.0001]
[1761250332967,2.77,190.05,189.99,0.0001]
[1761250333168,2.75834619,190.08,190.0,2.7]
[1761250333364,2.77,190.09,190.0,2.7]
[1761250333667,2.75834619,190.12,189.99,0.0001]
[1761250333668,8.50315115,190.12,190.02,2.7]
[1761250333868,3.88854523,190.11,190.02,2.7]
[1761250334172,2.75834619,190.08,189.99,0.0001]
[1761250334376,2.77,190.06,189.99,0.0001]
[1761250334575,2.77,190.03,189.99,0.0001]
[1761250335370,6.65854523,190.03,189.99,0.0001]
[1761250335577,2.77,190.08,189.99,0.0001]
[1761250335776,2.77,190.08,189.99,0.1001]
[1761250335977,2.77,190.08,190.0,2.19]
[1761250336178,2.77,190.07,190.0,2.19]
[1761250336779,6.7964331,190.07,190.0,6.78]
[1761250336979,4.0264331,190.06,190.0,6.78]
[1761250337278,2.77,190.07,190.0,6.78]
[1761250337479,4.0264331,190.08,190.0,9.48]
[1761250337671,4.1801431,190.11,190.01,2.7]
[1761250337871,0.15371,190.11,190.02,2.7]
[1761250338076,4.1801431,190.11,190.02,2.7]
[1761250338278,2.92371,190.11,190.02,2.7]
[1761250338671,6.9501431,190.11,190.02,2.7]
[1761250338877,6.7964331,190.1,190.02,2.7]
[1761250339073,4.0264331,190.09,190.02,2.7]
[1761250339275,2.77,190.09,190.0,6.78]
[1761250339880,6.78291598,190.09,190.0,6.78]
[1761250341984,2.77,190.08,190.0,6.78]
[1761250342584,9.45889552,190.06,190.0,6.78]
[1761250342777,2.77,190.04,190.0,6.78]
[1761250344696,2.77,190.02,190.0,6.78]
[1761250345092,2.77,190.02,189.99,0.1001]
[1761250345291,2.77,190.01,189.96,3.0]
[1761250345593,4.06398817,189.97,189.88,0.91618729]
[1761250345795,4.7356,190.0,189.88,3.61618729]
[1761250345796,4.06398817,189.93,189.88,3.61618729]
[1761250346091,4.06398817,189.93,189.84,2.7]
[1761250346092,2.77,189.92,189.84,2.7]
[1761250346296,4.06398817,189.89,189.82,0.91653718]
[1761250346590,2.77,189.88,189.82,0.91653718]
[1761250346799,4.06398817,189.89,189.77,3.0]
[1761250346800,2.77,189.83,189.77,3.0]
[1761250347093,6.83398817,189.81,189.77,3.0]
[1761250347288,2.77,189.8,189.77,3.0]
[1761250347487,4.06398817,189.78,189.66,0.91716522]
[1761250347688,4.06398817,189.78,189.67,2.86]
[1761250347884,2.77,189.77,189.67,2.86]
[1761250348096,4.06398817,189.74,189.66,0.91716522]
[1761250348293,4.06398817,189.74,189.63,2.86]
[1761250348597,2.77,189.73,189.63,2.86]
[1761250348794,2.77,189.73,189.64,6.39]
[1761250349092,2.82,189.72,189.64,6.39]
[1761250349288,4.06398817,189.82,189.66,2.66]
[1761250349488,4.77770184,189.87,189.67,2.66]
[1761250349489,4.06398817,189.78,189.67,2.66]
[1761250349685,4.06398817,189.82,189.67,2.66]
[1761250349893,4.06398817,189.78,189.67,2.66]
[1761250350094,4.06398817,189.74,189.64,6.39]
[1761250350292,15.8,189.78,189.64,6.39]
[1761250350492,4.06398817,189.74,189.64,6.39]
[1761250350692,4.06398817,189.78,189.65,2.66]
[1761250351089,4.77770184,189.84,189.65,2.66]
[1761250351394,2.82,189.82,189.69,7.4034]
[1761250351591,2.82,189.82,189.69,4.7434]
[1761250351995,2.82,189.82,189.71,4.7427]
[1761250352191,2.82,189.82,189.64,6.39]
[1761250352192,2.82,189.78,189.64,9.05]
[1761250352390,2.82,189.78,189.65,2.66]
[1761250352596,2.82,189.78,189.66,4.744]
[1761250352799,6.88398817,189.78,189.67,2.66]
[1761250353998,2.82,189.77,189.67,2.66]
[1761250354506,2.82,189.77,189.66,4.744]
[1761250354695,2.82,189.77,189.64,6.39]
[1761250354696,6.88398817,189.74,189.64,6.39]
[1761250355008,2.82,189.73,189.64,6.39]
[1761250355808,4.06398817,189.7,189.64,6.39]
[1761250356202,2.82,189.73,189.64,13.7945]
[1761250356904,4.06398817,189.74,189.66,4.744]
[1761250357106,4.06398817,189.74,189.66,7.404]
[1761250357609,4.06398817,189.74,189.64,6.39]
[1761250357610,6.88398817,189.78,189.68,4.7436]
[1761250358307,2.82,189.78,189.68,4.7436]
[1761250358903,2.82,189.78,189.67,2.66]
[1761250359613,2.82,189.78,189.69,2.66]
[1761250361006,4.06398817,189.79,189.71,2.66]
[1761250361709,4.28225817,189.83,189.65,2.66]
[1761250361906,4.06398817,189.79,189.65,2.66]
[1761250362115,6.88398817,189.79,189.66,7.404]
[1761250362406,2.82,189.78,189.66,2.66]
[1761250362710,2.82,189.78,189.68,4.7435]
[1761250362908,2.82,189.78,189.68,2.66]
[1761250363904,4.06398817,189.8,189.71,2.66]
[1761250364812,4.06398817,189.8,189.71,7.4028]
[1761250366213,4.06398817,189.8,189.72,2.66]
[1761250366709,3.03827,189.83,189.73,7.4023]
[1761250367216,3.03827,189.83,189.74,2.66]
[1761250367599,0.21827,189.83,189.77,2.66]
[1761250368709,0.21827,189.83,189.77,7.4014]
[1761250369206,0.21827,189.83,189.78,4.7409]
[1761250369401,0.21827,189.83,189.79,2.66]
[1761250371218,3.03827,189.83,189.74,2.66]
[1761250371509,2.82,189.82,189.74,2.66]
[1761250371716,7.5603,189.82,189.74,2.66]
[1761250372308,0.21827,189.83,189.74,2.66]
[1761250372509,4.18704062,189.83,189.74,2.66]
[1761250372917,0.21827,189.83,189.74,2.66]
[1761250374511,2.82,189.82,189.71,4.7429]
[1761250374711,6.78877062,189.82,189.71,7.4029]
[1761250374914,3.96877062,189.81,189.71,7.4029]
[1761250375115,4.7412,189.78,189.71,2.66]
[1761250375817,3.96877062,189.79,189.71,2.66]
[1761250376210,4.06398817,189.8,189.71,2.66]
[1761250376518,3.96877062,189.79,189.71,2.66]
[1761250377111,8.70987062,189.79,189.71,2.66]
[1761250377311,3.96877062,189.78,189.71,2.66]
[1761250377512,3.96877062,189.77,189.71,2.66]
[1761250377716,3.96877062,189.76,189.71,2.66]
[1761250377917,3.96877062,189.75,189.71,2.66]
[1761250378119,3.96877062,189.78,189.71,2.66]
[1761250378418,3.96877062,189.77,189.71,2.66]
[1761250378620,3.96877062,189.76,189.72,4.7426]
[1761250378819,3.96877062,189.75,189.73,2.66]
[1761250379013,3.96877062,189.74,189.73,2.66]
[1761250379923,3.96877062,189.74,189.7,2.84]
[1761250380111,3.96877062,189.73,189.7,2.84]
[1761250380420,3.96877062,189.72,189.65,2.84]
[1761250380621,3.96877062,189.71,189.68,2.84]
[1761250380920,7.55770184,189.76,189.68,2.84]
[1761250381108,4.00588448,189.75,189.68,2.84]
[1761250381313,4.77770184,189.73,189.68,2.84]
[1761250381511,4.00588448,189.72,189.68,2.84]
[1761250381711,4.00588448,189.71,189.64,10.14715314]
[1761250381913,4.00588448,189.7,189.66,2.84]
[1761250382220,4.00588448,189.69,189.66,2.84]
[1761250382423,4.00588448,189.68,189.66,2.84]
[1761250382716,4.77770184,189.74,189.66,2.84]
[1761250382914,13.78659365,189.79,189.66,2.84]
[1761250382915,4.01057704,189.73,189.66,2.84]
[1761250383219,4.77770184,189.75,189.69,2.84]
[1761250383714,4.77770184,189.74,189.69,2.84]
[1761250384416,7.55770184,189.74,189.69,2.84]
[1761250384617,7.55770184,189.7,189.64,6.39]
[1761250384816,4.7578047,189.67,189.64,6.39]
[1761250385321,9.30510729,189.67,189.64,6.39]
[1761250386017,9.30510729,189.67,189.64,9.23]
[1761250386321,15.74,189.81,189.64,9.23]